[Event "55th Ladies GM 2024"]
[Site "Belgrade9"]
[Date "2024.03.03"]
[Round "2.5"]
[White "Kulkarni Bhakti"]
[Black "Maltsevskaya, Aleksandra"]
[Result "0-1"]
[ECO "A38"]
[WhiteElo "2372"]
[BlackElo "2374"]
[Annotator "TA"]
[PlyCount "64"]
[EventDate "2024.03.02"]
[EventType "tourn"]
[EventCountry "SRB"]
[SourceTitle "playchess.com"]
[Source "ChessBase"]
[SourceQuality "1"]
[TimeControl "40/5400+30:1800+30"]

{[%evp 16,64,-28,-47,-17,-27,-31,-52,-51,-52,-54,-58,-57,-52,-26,-29,-29,-37,-37,-41,-35,-80,-93,-95,-91,-85,-80,-69,-70,-111,-52,-70,-49,-49,-48,-54,-56,-268,-254,-257,-263,-290,-151,-149,-133,-618,-597,-1811,-1671,-29985,-29970]} 1. Nf3 {[%emt 0:00:26]} c5 {[%emt 0:00:20]} 2. c4 {[%emt 0:01:30]} Nc6 {[%emt 0:00:09]} 3. g3 {[%emt 0:02:07]} g6 {[%emt 0:00:08]} 4. Bg2 {[%emt 0:00:39]} Bg7 {[%emt 0:00:07]} 5. Nc3 {[%emt 0:00:38]} Nf6 {[%emt 0:00:11]} 6. O-O {[%emt 0:00:34]} O-O {[%emt 0:03:28]} 7. b3 {[%emt 0:03:49]} d5 {[%emt 0:04:58]} 8. cxd5 {[%emt 0:00:56]} Nxd5 {[%emt 0:00:06]} 9. Bb2 {[%emt 0:00:25]} Nxc3 {[%emt 0:07:32]} 10. Bxc3 {[%emt 0:05:53]} e5 {[%emt 0:03:00]} 11. Rc1 {[%emt 0:00:53]} Bg4 {[%emt 0:06:53] Black is slightly better.} 12. h3 {[%emt 0:06:40]} Be6 {[%emt 0:00:06]} 13. d3 {[%emt 0:01:24]} Rc8 {[%emt 0:01:11]} 14. Qd2 {[%emt 0:11:45]} h6 {[%emt 0:05:07] Wards off Ng5} 15. Qb2 {[%emt 0:16:22][%cal Rf3e5]} Nd4 {[%emt 0:13:32]} 16. Rfd1 {[%emt 0:09:34]} Qd7 {[%emt 0:04:10]} 17. Kh2 {[%emt 0:03:35]} Rfe8 {[%emt 0:00:16]} 18. Nxd4 {[%emt 0:19:13]} exd4 {[%emt 0:01:32]} ({Don't play} 18... cxd4 19. Bd2 $11) 19. Bd2 {[%emt 0:02:04]} Bd5 {[%emt 0:00:13]} 20. Re1 {[%emt 0:01:13]} Bxg2 {[%emt 0:00:33]} 21. Kxg2 {[%emt 0:00:02]} Qd5+ {[%emt 0:00:07]} 22. Kh2 {[%emt 0:00:29]} Re6 {[%emt 0:01:18]} (22... Qh5 $17 23. Kg2 Rxe2 24. Rxe2 Qxe2) 23. b4 $15 {[%emt 0:00:53]} c4 {[%emt 0:03:57] Black is much more active.} (23... Qf5 {keeps more tension.} 24. Kg2 Rf6 25. Rf1 c4) 24. dxc4 {[%emt 0:00:35]} Rxc4 {[%emt 0:05:10]} 25. Qb3 {[%emt 0:02:21]} b5 $40 {[%emt 0:00:05][%mdl 128] Black attacks.} 26. a4 $2 {[%emt 0:02:45] [#]} (26. Qd3 $15) 26... Qf5 $1 $19 {[%emt 0:01:02]} 27. Kg2 {[%emt 0:03:01] [#]} Rxc1 $1 {[%emt 0:00:07]} 28. Bxc1 {[%emt 0:00:04]} bxa4 {[%emt 0:00:35]} (28... d3 $19 29. Be3 bxa4) 29. Qxa4 $17 {[%emt 0:00:28]} d3 {[%emt 0:00:08]} 30. Be3 $2 {[%emt 0:00:39][%mdl 8192]} (30. Bd2 $17) 30... Bc3 $19 {[%emt 0:00:34]} 31. Qd7 {[%emt 0:04:19] Hoping for Qc8+.} Rxe3 {[%emt 0:00:43]} (31... Bxb4 32. Qd8+ Kh7 33. Bd4 $17) 32. Qd8+ {[%emt 0:00:39]} Kh7 {[%emt 0:00:06] Weighted Error Value: White=0.98/Black=0.13 (very precise) .  Loses game:     	White=2     	---        Mistake:       	---       	Black=2      Inaccurate:     	White=4     	Black=1      OK:         	White=7     	Black=8      Best:        	---       	Black=1      Strong:       	---       	Black=2} 0-1

[Event "55th Ladies GM 2024"]
[Site "Belgrade9"]
[Date "2024.03.04"]
[Round "3.1"]
[White "Maltsevskaya, Aleksandra"]
[Black "Pogorelskikh, Sofia"]
[Result "1-0"]
[ECO "A28"]
[WhiteElo "2374"]
[BlackElo "2214"]
[Annotator "TA"]
[PlyCount "65"]
[EventDate "2024.03.02"]
[EventType "tourn"]
[EventCountry "SRB"]
[SourceTitle "playchess.com"]
[Source "ChessBase"]
[SourceQuality "1"]
[TimeControl "40/5400+30:1800+30"]

{[%evp 13,65,-22,-14,-27,33,12,6,6,6,-50,-51,-66,-39,-48,-17,-88,-68,-88,-85,-89,-47,-125,-122,-121,-108,-114,-122,-119,-108,-107,-106,-150,-15,-68,304,312,316,306,854,737,1241,1219,29969,29969,29992,29993,29993,29994,29996,29993,29993,29994,29997,29998]} 1. c4 {[%emt 0:00:06]} e5 {[%emt 0:00:16]} 2. Nc3 {[%emt 0:00:08]} Nf6 {[%emt 0:00:27]} 3. Nf3 {[%emt 0:00:09]} Nc6 {[%emt 0:00:40]} 4. d4 {[%emt 0:02:32]} exd4 {[%emt 0:02:04]} 5. Nxd4 {[%emt 0:00:06]} Bb4 {[%emt 0:08:53]} 6. Bg5 {[%emt 0:04:08]} h6 {[%emt 0:05:14]} 7. Bh4 {[%emt 0:00:05]} O-O {[%emt 0:07:25]} 8. e3 {[%emt 0:00:15]} Ne5 {[%emt 0:08:42]} (8... Re8 $11) 9. Qc2 {[%emt 0:03:31]} Ng6 {[%emt 0:03:22]} 10. Bg3 {[%emt 0:00:10] Die Stellung ist ausgeglichen.} Bxc3+ {[%emt 0:03:41]} 11. bxc3 {[%emt 0:09:01]} (11. Qxc3 $11 h5 12. Qa5) 11... Nh5 $15 {[%emt 0:04:09]} 12. c5 {[%emt 0:07:00]} Nxg3 {[%emt 0:03:07]} 13. hxg3 {[%emt 0:00:05]} Qg5 {[%emt 0:02:30]} 14. g4 {[%emt 0:08:54]} Qxc5 {[%emt 0:04:41]} 15. Rh5 {[%emt 0:00:37]} d5 {[%emt 0:01:46]} 16. Be2 {[%emt 0:12:41]} c6 {[%emt 0:12:49]} 17. Kd2 {[%emt 0:03:49]} (17. g5 $15) 17... Qe7 $17 {[%emt 0:03:44]} 18. g5 {[%emt 0:17:34][%cal Bg4g5,Bg5h6][%mdl 32]} c5 {[%emt 0:01:56]} (18... hxg5 19. Rah1 f5 20. g4 $11) 19. Nf5 {[%emt 0:00:04]} Bxf5 {[%emt 0:03:49]} 20. Qxf5 {[%emt 0:00:05] [#]} d4 $1 {[%emt 0:01:51][%mdl 512] Und jetzt ...dxe3+ wäre schön.} 21. gxh6 {[%emt 0:01:40]} dxe3+ {[%emt 0:00:57]} 22. Kc2 {[%emt 0:00:32]} exf2 {[%emt 0:02:22]} (22... Rad8 $17 {Droht ...Rd2+ und aus.} 23. hxg7 Rd2+ (23... Kxg7 24. fxe3 Qxe3 25. Bb5 $19) 24. Kb3 Kxg7 (24... Rxe2 $2 25. gxf8=Q+ Kxf8 26. fxe3 $18) (24... Rfd8 25. Rah1 $14)) 23. Bc4 {[%emt 0:00:16]} ({Vorzuziehen ist} 23. Bd3 $11) 23... Nh4 $2 {[%emt 0:08:57][%mdl 8192] Danach kann Schwarz die Partie nicht mehr halten.} (23... Rae8 $1 $15 24. hxg7 (24. Qxg6 Qe2+ 25. Bxe2 Rxe2+ 26. Kd3 fxg6 $19) 24... Kxg7) 24. Qg4 $18 {[%emt 0:00:56][%csl Gh6][%cal Rg4g7]} (24. Qxf2 Ng6 $16 (24... Qe4+ $2 25. Kb3 $18)) 24... g6 {[%emt 0:01:02][%cal Ob7b5]} 25. Qxh4 {[%emt 0:01:59]} (25. Rxh4 Kh7 26. Qf4 Rae8 27. Qxf2 b6 $18) 25... Qd6 {[%emt 0:01:25]} (25... Rae8 26. Rf1 (26. Qxe7 Rxe7 27. Rhh1 Kh7 $18) 26... Kh7 (26... gxh5 27. Qg3+)) 26. Rd1 {[%emt 0:00:28]} Qc6 {[%emt 0:01:11] [#]} 27. Qxf2 $1 {[%emt 0:08:00]} Qa4+ {[%emt 0:02:30]} (27... Kh7 28. Rxc5) 28. Kb2 {[%emt 0:01:20] Weiß setzt Matt.} Qxc4 {[%emt 0:05:00] [#]} 29. Qf6 $1 {[%emt 0:00:06][%csl Gh6][%cal Rf6g7]} Qe2+ {[%emt 0:00:00] [#]} 30. Kc1 $1 {[%emt 0:00:06][%cal Rh6h7]} ({Weniger gut wäre} 30. Ka3 Qa6+ 31. Qxa6 bxa6 32. Rxc5 Kh7 $16) 30... Qe3+ {[%emt 0:00:00]} 31. Rd2 {[%emt 0:00:06][%csl Gh6][%cal Rf6g7]} Qe1+ {[%emt 0:00:03]} 32. Kc2 {[%emt 0:00:06][%cal Rh6h7]} Qe4+ {[%emt 0:00:13]} 33. Kb2 {[%emt 0:00:04] Gewichteter Fehlerwert: Weiß=0.16 (sehr präzise) /Schwarz=0.56.  Verlustzug:     	---       	Schwarz=1     Fehler:       	Weiß=4     	Schwarz=3     Ungenau:       	Weiß=1     	Schwarz=3     OK:         	Weiß=6     	Schwarz=9     Bester:       	---       	Schwarz=1     Brilliant:      	---       	Schwarz=1} 1-0

[Event "55th Ladies GM 2024"]
[Site "Belgrade9"]
[Date "2024.03.04"]
[Round "3.2"]
[White "Vujovic, Vera"]
[Black "Kulkarni Bhakti"]
[Result "0-1"]
[ECO "C60"]
[WhiteElo "2175"]
[BlackElo "2372"]
[Annotator "TA"]
[PlyCount "90"]
[EventDate "2024.03.02"]
[EventType "tourn"]
[EventCountry "SRB"]
[SourceTitle "playchess.com"]
[Source "ChessBase"]
[SourceQuality "1"]
[TimeControl "40/5400+30:1800+30"]

{[%evp 11,90,26,25,27,39,18,35,3,15,6,14,0,0,-47,-47,-63,-69,-64,-16,-85,-80,-69,-32,-68,-22,-108,-95,-105,-38,-56,-43,-36,-37,-36,-34,-36,-26,-25,-30,-43,-30,-86,-66,-82,-88,-91,-94,-69,-32,-32,-20,-20,-19,-19,-19,-19,-19,-19,-19,-19,0,0,0,0,0,0,0,-361,-366,-29987,-29988,-29993,-29994,-29994,-29995,-29995,-29996,-29996,-29997,-29997,-29998]} 1. e4 {[%emt 0:00:03]} e5 {[%emt 0:00:25]} 2. Nf3 {[%emt 0:00:10]} Nc6 {[%emt 0:00:12]} 3. Bb5 {[%emt 0:00:19]} Nge7 {[%emt 0:00:16]} 4. d4 {[%emt 0:00:37]} exd4 {[%emt 0:00:37]} 5. Nxd4 {[%emt 0:00:19]} Nxd4 {[%emt 0:01:44]} 6. Qxd4 {[%emt 0:00:16]} Nc6 {[%emt 0:03:58]} 7. Qe3 {[%emt 0:11:17]} Bb4+ {[%emt 0:06:14]} 8. c3 {[%emt 0:12:32]} Be7 {[%emt 0:00:51]} 9. Qg3 {[%emt 0:06:34] White is slightly better.} O-O {[%emt 0:01:57]} 10. O-O {[%emt 0:18:30]} Bh4 {[%emt 0:02:10]} 11. Qf4 {[%emt 0:03:58]} d6 {[%emt 0:01:53]} 12. Bxc6 {[%emt 0:03:37]} (12. Nd2 $11) 12... bxc6 $15 {[%emt 0:00:43]} 13. Rd1 {[%emt 0:00:17]} Qe7 {[%emt 0:02:28]} 14. Be3 {[%emt 0:03:25]} Rb8 {[%emt 0:09:06]} (14... g5 $15 15. Qf3 g4) 15. b4 {[%emt 0:05:36] [#]} (15. b3 $11) 15... a5 $1 $17 {[%emt 0:08:52]} 16. a3 {[%emt 0:01:59]} h5 {[%emt 0:07:01]} 17. h3 {[%emt 0:06:30]} g5 {[%emt 0:16:00]} (17... f5 $1 $15 18. exf5 Rxf5) 18. Qf3 {[%emt 0:05:29]} (18. Qh2 $1 $11 {remains equal.} g4 (18... Qxe4 $2 19. Nd2 $18) 19. hxg4) 18... g4 {[%emt 0:01:43]} 19. Qf4 {[%emt 0:00:20]} (19. hxg4 $2 Bxg4 20. Qf4 Bxd1 $19) 19... Rb5 {[%emt 0:02:31]} (19... f5 $17 20. e5 Qxe5 (20... dxe5 $2 21. Qh6 $19) 21. Qxe5 dxe5) 20. hxg4 $15 {[%emt 0:10:14]} Bxg4 {[%emt 0:06:19]} 21. Re1 {[%emt 0:00:59]} Bg5 {[%emt 0:00:58] This pair of bishops is nice.} 22. Qg3 {[%emt 0:00:31]} Qxe4 {[%emt 0:02:14]} 23. Nd2 {[%emt 0:02:52]} Qg6 {[%emt 0:00:40]} 24. c4 {[%emt 0:04:18]} Bxe3 {[%emt 0:01:18]} 25. Rxe3 {[%emt 0:00:17]} Rg5 {[%emt 0:02:17]} 26. f4 {[%emt 0:01:02]} (26. bxa5 $11 {keeps the balance.} Rxa5 27. Rae1) 26... Rf5 $17 {[%emt 0:01:21]} 27. Rae1 {[%emt 0:01:21]} axb4 {[%emt 0:02:32]} 28. axb4 {[%emt 0:00:10]} Qf6 {[%emt 0:01:13]} 29. Re4 {[%emt 0:00:38] Dodges Qd4+} Kh8 {[%emt 0:02:11]} 30. Nf1 $1 {[%emt 0:00:42]} d5 {[%emt 0:01:33]} 31. cxd5 {[%emt 0:00:24]} cxd5 {[%emt 0:00:14]} 32. Re8 {[%emt 0:00:34]} Qd4+ {[%emt 0:01:00]} 33. Kh2 {[%emt 0:00:36]} Rxe8 {[%emt 0:00:48]} 34. Rxe8+ {[%emt 0:00:05]} Kh7 {[%emt 0:02:31]} 35. Ne3 {[%emt 0:00:37]} Rf6 {[%emt 0:02:53]} (35... Rxf4 $5 36. Nxd5 Rf1 $11) 36. f5 {[%emt 0:00:42]} c6 {[%emt 0:01:16]} 37. Qb8 {[%emt 0:01:10] Intending Rh8+ and mate.} Rh6 $1 {[%emt 0:00:24]} 38. Qc7 {[%emt 0:00:00][%cal Oe8f8] aiming for Rf8!} Qf6 {[%emt 0:02:08]} (38... Qxb4 39. Qxf7#) 39. Qc8 {[%emt 0:00:25][%mdl 8192]} (39. Re6 $11 {and White has nothing to worry.} Qh4+ 40. Kg1 Rxe6 41. Qxf7+ Kh8 42. Qf8+ Kh7 43. Qf7+ (43. fxe6 Bxe6 44. Nc2 Qg5 $11) 43... Kh8 44. Qf8+ Kh7 45. Qf7+ (45. fxe6 Bxe6 46. Qe8 Qe4 $11)) 39... d4 $19 {[%emt 0:00:32]} 40. Nxg4 {[%emt 0:00:27] [#]} (40. Nf1 $19 Bxf5 (40... Qxf5 $2 {is the wrong capture.} 41. Rh8+ Kg6 42. Qg8+ Kf6 43. Rxh6+ $18) 41. Qd8) 40... hxg4+ {[%emt 0:00:22] KQR-KQR. Black mates.} 41. Kg3 {[%emt 0:30:35]} Qh4+ {[%emt 0:35:27]} 42. Kf4 {[%emt 0:00:06]} Qf2+ {[%emt 0:00:49]} 43. Kxg4 {[%emt 0:00:29]} Rh4+ {[%emt 0:00:00]} 44. Kg5 {[%emt 0:00:00]} Qg3+ {[%emt 0:00:00]} 45. Kf6 {[%emt 0:00:00]} Rh6+ {[%emt 0:00:00] Weighted Error Value: White=0.42/Black=0.08 (flawless) .  Loses game:     	White=1     	---        Mistake:       	White=5     	Black=3      Inaccurate:     	White=2     	Black=2      OK:         	White=14    	Black=9      Best:        	---       	Black=4      Strong:       	White=1     	Black=1} 0-1

[Event "55th Ladies GM 2024"]
[Site "Belgrade9"]
[Date "2024.03.04"]
[Round "3.3"]
[White "Mehmed, Elif"]
[Black "Doluhanova, Evgeniya"]
[Result "1-0"]
[ECO "C47"]
[WhiteElo "2194"]
[BlackElo "2261"]
[Annotator "TA"]
[PlyCount "91"]
[EventDate "2024.03.02"]
[EventType "tourn"]
[EventCountry "SRB"]
[SourceTitle "playchess.com"]
[Source "ChessBase"]
[SourceQuality "1"]
[TimeControl "40/5400+30:1800+30"]

{[%evp 9,91,9,0,4,0,0,0,-5,-12,-18,-13,-16,0,-9,20,-8,-18,-20,0,-12,27,34,41,0,117,108,150,167,159,152,179,182,323,320,310,271,258,258,272,275,266,134,117,126,125,93,95,89,96,103,94,103,96,92,107,138,358,311,567,573,568,508,758,684,737,741,1696,1589,1250,1285,1341,1360,1184,1143,2439,2203,29976,29976,29976,29976,29975,29973,29984,29985]} 1. e4 {[%emt 0:00:03]} e5 {[%emt 0:00:17]} 2. Nf3 {[%emt 0:00:17]} Nc6 {[%emt 0:00:04]} 3. Nc3 {[%emt 0:00:06]} Nf6 {[%emt 0:00:10]} 4. a3 {[%emt 0:00:08]} g6 {[%emt 0:01:25]} 5. d4 {[%emt 0:04:52]} exd4 {[%emt 0:00:48]} 6. Nxd4 {[%emt 0:00:06][%cal Oe4e5]} Bg7 {[%emt 0:01:05]} 7. Nxc6 {[%emt 0:12:54]} bxc6 {[%emt 0:00:22]} 8. Bc4 {[%emt 0:01:07] The position is equal.} O-O {[%emt 0:01:27][%cal Od7d5]} 9. O-O {[%emt 0:02:12]} d6 {[%emt 0:01:17]} 10. Bg5 {[%emt 0:03:32]} h6 {[%emt 0:00:38]} 11. Bh4 {[%emt 0:01:08]} Qe8 {[%emt 0:05:00]} (11... g5 $5 12. Bg3 $8 h5 $15) 12. Qe2 {[%emt 0:05:32]} Rb8 {[%emt 0:02:08]} 13. Rab1 {[%emt 0:01:03]} Be6 {[%emt 0:11:04]} 14. Bd3 {[%emt 0:06:54]} c5 {[%emt 0:15:02]} 15. f4 {[%emt 0:06:57]} Bg4 {[%emt 0:06:34]} 16. Qe1 {[%emt 0:01:25]} Nh7 {[%emt 0:05:27]} (16... Bd7 $11 {remains equal.}) 17. f5 $16 {[%emt 0:13:36]} gxf5 {[%emt 0:10:22]} 18. exf5 {[%emt 0:00:22] Threatens to win with f6.} Bd4+ {[%emt 0:00:57] [#]} 19. Bf2 $1 {[%emt 0:03:55] aiming for Bxd4.} Qxe1 {[%emt 0:03:33]} 20. Rbxe1 {[%emt 0:01:35] Bxd4 is the strong threat.} f6 {[%emt 0:10:02]} (20... Bxc3 {keeps fighting.} 21. bxc3 Bh5) 21. Bxd4 $18 {[%emt 0:11:00]} cxd4 {[%emt 0:00:06]} 22. Bc4+ {[%emt 0:00:03]} Kh8 {[%emt 0:00:18]} 23. Nd5 {[%emt 0:00:07]} Rfe8 {[%emt 0:10:53] Black is weak on the light squares} 24. Ne7 {[%emt 0:05:48]} (24. Nxc7 $6 Rxe1 25. Rxe1 Bxf5 $16) 24... Bh5 {[%emt 0:04:32] [#] Prevents Bf7} 25. g4 {[%emt 0:01:01]} Bxg4 $16 {[%emt 0:01:01][%cal Oh7g5]} 26. Bf7 {[%emt 0:00:19]} Rf8 {[%emt 0:04:57]} 27. Ng6+ {[%emt 0:00:34]} Kg7 {[%emt 0:00:05]} 28. Nxf8 {[%emt 0:00:06]} Kxf8 {[%emt 0:00:06]} 29. Bg6 {[%emt 0:01:41]} Ng5 {[%emt 0:00:11]} 30. Kf2 $36 {[%emt 0:01:58][%mdl 2048] Prevents Nf3. White is really pushing.} d5 {[%emt 0:01:22]} 31. Kg3 {[%emt 0:02:10]} h5 {[%emt 0:00:10]} 32. b4 {[%emt 0:00:51][%cal Bb2b4,Bb4a5][%mdl 32]} a5 $2 {[%emt 0:00:25] This costs Black the game.} (32... Ne4+ $16 33. Kg2 Ng5) 33. bxa5 $18 {[%emt 0:00:40][%cal Oe1e8] Hoping for Re8+!} Ra8 {[%emt 0:00:12] [#]} (33... d3 {was worth a try.}) 34. Re8+ $1 {[%emt 0:02:53][%mdl 512]} Rxe8 {[%emt 0:00:33]} 35. Bxe8 {[%emt 0:00:04][%cal Oa5a6][%mdl 4096] Endgame. And now a6! would win. KRB-KBN} Ne4+ {[%emt 0:04:25]} 36. Kh4 {[%emt 0:02:47][%cal Oa5a6] Strongly threatening a6!} Be2 {[%emt 0:00:19]} 37. Re1 {[%emt 0:00:24]} (37. Bxh5 $2 {perishes.} Bxf1 38. Bf3 c5 $19) 37... Kxe8 {[%emt 0:00:12]} 38. Rxe2 {[%emt 0:00:11][%cal Oa5a6] Intending a6! and mate. KR-KN} Kd7 {[%emt 0:00:03]} 39. Kxh5 {[%emt 0:01:21]} c5 {[%emt 0:00:04][%cal Bc7c5,Bc5c4,Bc4c3][%mdl 32]} 40. Kg4 {[%emt 0:00:38]} c4 {[%emt 0:00:05]} 41. Kf4 {[%emt 0:31:27]} Nc5 {[%emt 0:30:47]} 42. h4 {[%emt 0:02:57][%cal Bh2h4,Bh4h5][%mdl 32]} c3 {[%emt 0:00:05]} 43. h5 {[%emt 0:01:21] White mates.} d3 {[%emt 0:00:08]} 44. cxd3 {[%emt 0:00:09]} Nxd3+ {[%emt 0:02:08]} 45. Ke3 {[%emt 0:00:30]} Nc5 {[%emt 0:01:21]} 46. Kd4 {[%emt 0:00:25] Weighted Error Value: White=0.09 (flawless) /Black=0.57.  Loses game:     	---       	Black=1      Mistake:       	White=1     	Black=3      Inaccurate:     	White=2     	Black=4      OK:         	White=15    	Black=9      Best:        	White=2     	Black=2      Strong:       	White=1     	---} 1-0

[Event "55th Ladies GM 2024"]
[Site "Belgrade9"]
[Date "2024.03.04"]
[Round "3.4"]
[White "Lu, Miaoyi"]
[Black "Djukic, Sandra"]
[Result "1-0"]
[ECO "B06"]
[WhiteElo "2392"]
[BlackElo "2127"]
[Annotator "TA"]
[PlyCount "73"]
[EventDate "2024.03.02"]
[EventType "tourn"]
[EventCountry "SRB"]
[SourceTitle "playchess.com"]
[Source "ChessBase"]
[SourceQuality "1"]
[TimeControl "40/5400+30:1800+30"]

{[%evp 11,73,32,31,18,20,29,0,19,130,37,33,9,28,-4,-6,-10,-20,-23,-39,-38,-16,-37,-35,-41,-20,-37,-12,-29,-23,-31,-31,-45,-39,-47,-39,-42,-3,-3,-4,-7,-7,-10,0,-16,-19,-414,212,202,198,193,247,231,243,221,189,197,673,622,647,647,631,647,596,570]} 1. e4 {[%emt 0:00:05]} c5 {[%emt 0:00:36]} 2. Nf3 {[%emt 0:00:05]} g6 {[%emt 0:00:19]} 3. c3 {[%emt 0:07:39]} d5 {[%emt 0:00:08]} 4. exd5 {[%emt 0:12:54]} Qxd5 {[%emt 0:00:06]} 5. d4 {[%emt 0:00:18]} Bg7 {[%emt 0:00:07]} 6. Na3 {[%emt 0:00:17]} cxd4 {[%emt 0:00:47]} 7. Bc4 {[%emt 0:05:48]} Qe4+ {[%emt 0:07:03] [#]} 8. Be3 $1 {[%emt 0:04:04][%cal Oc4f7] aiming for Bxf7+!} Nh6 {[%emt 0:06:34]} (8... dxe3 $2 9. Bxf7+ Kxf7 (9... Kf8 $2 10. Qd8+ Kxf7 11. Ng5+ Kf6 12. Nxe4+ $18) 10. Ng5+ Ke8 11. Nxe4 $18) 9. Nb5 {[%emt 0:02:37] The position is equal.} (9. Nxd4 Qxg2 10. Qf3 Qxf3 11. Nxf3 O-O $17) 9... Na6 {[%emt 0:31:14]} (9... dxe3 10. Nc7+ Kf8 11. Qd8#) (9... O-O $1 $11 10. cxd4 Nc6) 10. cxd4 {[%emt 0:14:24] White is more active.} (10. Nfxd4 Qxg2 11. Qf3 Qxf3 12. Nxf3 O-O 13. Bxa7 Bh3 $17) (10. Nbxd4 $16 {0-0 would now be deadly.} O-O 11. O-O) 10... O-O $1 $14 {[%emt 0:08:15]} 11. O-O {[%emt 0:05:50]} Bg4 {[%emt 0:09:30]} 12. Be2 {[%emt 0:06:31]} Nf5 {[%emt 0:03:37]} 13. Bg5 {[%emt 0:03:24]} Qd5 {[%emt 0:07:21]} 14. Nc3 {[%emt 0:01:17]} Qa5 {[%emt 0:00:16]} 15. d5 {[%emt 0:06:45]} h6 {[%emt 0:08:39]} 16. Bf4 {[%emt 0:00:22]} Rad8 {[%emt 0:11:28]} 17. h3 {[%emt 0:00:19]} Bxf3 {[%emt 0:00:04]} 18. Bxf3 {[%emt 0:00:03]} Nd4 {[%emt 0:00:21]} 19. Be4 {[%emt 0:06:13][%cal Of4h6]} e5 {[%emt 0:02:14]} 20. Be3 {[%emt 0:01:19]} Nc5 {[%emt 0:00:31] A dynamic duo of knights.} 21. Bd3 {[%emt 0:02:31]} Nxd3 {[%emt 0:01:09]} 22. Qxd3 {[%emt 0:00:02]} Rfe8 {[%emt 0:00:31]} 23. Rad1 {[%emt 0:02:10]} b5 {[%emt 0:00:35]} 24. Bxd4 {[%emt 0:04:43]} exd4 {[%emt 0:00:04]} 25. Qxb5 {[%emt 0:00:05]} Qc7 {[%emt 0:00:53]} (25... Qxb5 {simplifies} 26. Nxb5 a6 27. Nxd4 Rxd5 28. Nb3 Rxd1 29. Rxd1 Bxb2 30. g3 Re6) 26. Ne2 {[%emt 0:03:33][%cal Bc3e2,Be2d4,Bd4c6][%mdl 32]} Qe5 {[%emt 0:00:35][%csl LRd5,LRe2]} 27. Nxd4 {[%emt 0:00:13] Threatens to win with Nc6.} Rxd5 {[%emt 0:00:26]} 28. Qa4 {[%emt 0:00:35][%mdl 8192]} (28. Qc6 $1 $11 Rd6 29. Rde1 Qxe1 (29... Qxd4 $2 {perishes.} 30. Qxe8+ Bf8 31. Re7 $18) (29... Rxc6 30. Rxe5 Rxe5 31. Nxc6 $11) 30. Qxd6) 28... Red8 $4 {[%emt 0:00:32][%mdl 8192]} (28... Rxd4 29. Rxd4 (29. Qxa7 $2 Qd5 $19) 29... Bf6 30. Rfd1 $18) (28... Qe4 $19 29. Qxa7 Bxd4 (29... Rxd4 $2 30. Qc5 $19)) 29. Nc6 $18 {[%emt 0:00:22]} Qe8 {[%emt 0:00:14] [#] And now ...Rxd1 would win.} 30. Rde1 {[%emt 0:00:21]} Qd7 {[%emt 0:00:13]} (30... Be5 $142) 31. Re7 {[%emt 0:03:01]} Qd6 {[%emt 0:00:00][%cal Od5c5]} 32. Rxa7 {[%emt 0:01:42]} Re8 {[%emt 0:01:11][%cal Od5d2] [#]} 33. Ra8 $1 {[%emt 0:00:27]} Rxa8 $2 {[%emt 0:00:45]} (33... Rf8 34. b4 Rd2) 34. Qxa8+ {[%emt 0:00:02] White is clearly winning.} Bf8 {[%emt 0:00:17] [#]} 35. Ne7+ $1 {[%emt 0:00:05][%mdl 512]} Qxe7 {[%emt 0:00:08]} 36. Qxd5 {[%emt 0:00:02]} Qb4 {[%emt 0:00:26]} 37. Qb3 {[%emt 0:01:31] Weighted Error Value: White=0.34/Black=0.37.  Loses game:     	White=1     	---        Missed win:     	---       	Black=1      Mistake:       	White=1     	Black=3      Inaccurate:     	White=1     	Black=1      OK:         	White=9     	Black=14     Best:        	White=3     	Black=1      Strong:       	---       	Black=1} 1-0